bitfinex-derivatives/quotes_BTCF0:USTF0_20250315
["timestamp","ask_amount","ask_price","bid_price","bid_amount"]
[1742050390410,0.0645,84249.0,84248.0,0.3529467]
[1742050390613,0.0645,84249.0,84248.0,0.8229467]
[1742050390809,0.0645,84249.0,84248.0,0.39332573]
[1742050391010,0.1831933,84249.0,84248.0,0.39332573]
[1742050391205,0.1831933,84249.0,84248.0,0.66332573]
[1742050391617,0.0645,84249.0,84248.0,0.66332573]
[1742050391815,0.0645,84249.0,84248.0,0.66432573]
[1742050392409,0.0645,84249.0,84248.0,0.66532573]
[1742050393024,0.0645,84249.0,84248.0,0.39532573]
[1742050393321,0.0645,84249.0,84248.0,0.62532573]
[1742050393820,0.0645,84249.0,84248.0,0.39532573]
[1742050397922,0.0319,84249.0,84248.0,0.89532573]
[1742050398123,0.0593377,84262.0,84256.0,0.1186835]
[1742050398315,0.11886013,84257.0,84256.0,0.3486835]
[1742050398816,0.11886013,84257.0,84256.0,0.38906253]
[1742050399721,0.18086013,84257.0,84256.0,0.42889781]
[1742050399922,0.06217803,84257.0,84256.0,0.66889781]
[1742050400223,0.06217803,84257.0,84256.0,0.42889781]
[1742050400224,0.06317803,84257.0,84256.0,0.42889781]
[1742050400428,0.18386013,84257.0,84256.0,0.42889781]
[1742050401517,0.18386013,84257.0,84256.0,0.45346637]
[1742050402315,0.18386013,84257.0,84256.0,0.38896637]
[1742050402519,0.18386013,84257.0,84256.0,0.36439781]
[1742050403028,0.18386013,84257.0,84256.0,0.42679781]
[1742050404327,0.18386013,84257.0,84256.0,0.45094438]
[1742050405829,0.18386013,84257.0,84256.0,0.41934438]
[1742050408328,0.18286013,84257.0,84256.0,0.39619781]
[1742050408528,0.18086013,84257.0,84256.0,0.39719781]
[1742050410649,0.18086013,84257.0,84256.0,0.36639781]
[1742050410838,0.18086013,84257.0,84256.0,0.39049789]
[1742050411135,0.18086013,84257.0,84256.0,0.38949789]
[1742050411321,0.18086013,84257.0,84256.0,0.39049789]
[1742050412634,0.18086013,84257.0,84256.0,0.36639781]
[1742050413031,0.18086013,84257.0,84256.0,0.36539781]
[1742050413231,0.18086013,84257.0,84256.0,0.36639781]
[1742050415028,0.18086013,84257.0,84256.0,0.38851972]
[1742050415231,0.18086013,84257.0,84256.0,0.38951972]
[1742050415426,0.18086013,84257.0,84256.0,0.38851972]
[1742050415937,0.18086013,84257.0,84256.0,0.42111972]
[1742050416820,0.18086013,84257.0,84256.0,0.42011972]
[1742050417033,0.18086013,84257.0,84256.0,0.38751972]
[1742050417233,0.18086013,84257.0,84256.0,0.15751972]
[1742050417539,0.18086013,84257.0,84256.0,0.39751972]
[1742050417742,0.18086013,84257.0,84256.0,0.15751972]
[1742050421332,0.18086013,84257.0,84256.0,0.13439781]
[1742050422537,0.18086013,84257.0,84256.0,1e-08]
[1742050422836,0.1186933,84250.0,84249.0,0.1186929]
[1742050423238,0.5421933,84250.0,84249.0,0.1186929]
[1742050423437,0.1813933,84250.0,84249.0,0.1186929]
[1742050424641,0.1813933,84250.0,84249.0,0.1206929]
[1742050425138,0.1813933,84250.0,84249.0,0.1226929]
[1742050425528,0.5421933,84250.0,84249.0,0.1226933]
[1742050426642,0.5421933,84250.0,84249.0,0.3926933]
[1742050426847,0.5431933,84250.0,84249.0,0.4106933]
[1742050427155,0.5431933,84250.0,84249.0,0.3706933]
[1742050427341,0.5431933,84250.0,84249.0,0.1186933]
[1742050427530,0.5441933,84250.0,84249.0,0.1186933]
[1742050427932,0.1833933,84250.0,84249.0,0.1186933]
[1742050433845,0.11364,84263.0,84256.0,0.1186835]
[1742050434051,0.18096013,84257.0,84256.0,0.1186835]
[1742050434344,0.18096013,84257.0,84256.0,0.3886835]
[1742050434345,0.06227803,84257.0,84256.0,0.3886835]
[1742050434545,0.18096013,84257.0,84256.0,0.3586835]
[1742050434738,0.18096013,84257.0,84256.0,0.3903835]
[1742050434938,0.18096013,84257.0,84256.0,0.4211835]
[1742050435336,0.18096013,84257.0,84256.0,0.4221835]
[1742050435537,0.06227803,84257.0,84256.0,0.4221835]
[1742050436438,0.06227803,84257.0,84256.0,0.78975356]
[1742050437634,0.06227803,84257.0,84256.0,0.78875356]
[1742050437836,0.06227803,84257.0,84256.0,0.78975356]
[1742050438030,0.06227803,84257.0,84256.0,1.2629835]
[1742050438239,0.06227803,84257.0,84256.0,1.2419835]
[1742050438541,0.06227803,84257.0,84256.0,1.3229835]
[1742050439140,0.06227803,84257.0,84256.0,1.0529835]
[1742050439449,0.06227803,84257.0,84256.0,1.2929835]
[1742050439836,0.06227803,84257.0,84256.0,1.2939835]
[1742050441041,0.06227803,84257.0,84256.0,0.7839835]
[1742050442141,0.06227803,84257.0,84256.0,1.0339835]
[1742050442335,0.06227803,84257.0,84256.0,0.7839835]
[1742050442539,0.18096013,84257.0,84256.0,0.7839835]
[1742050442946,0.06227803,84257.0,84256.0,0.7839835]
[1742050444843,0.06227803,84257.0,84256.0,1.0539835]
[1742050445653,0.06227803,84257.0,84256.0,0.7839835]
[1742050445845,0.06227803,84257.0,84256.0,1.0139835]
[1742050446245,0.06227803,84257.0,84256.0,1.2839835]
[1742050446443,0.06227803,84257.0,84256.0,1.0139835]
[1742050447238,0.06227803,84257.0,84256.0,1.0239835]
[1742050447440,0.06227803,84257.0,84256.0,0.79091231]
[1742050447640,0.06227803,84257.0,84256.0,1.06091231]
[1742050448445,0.06227803,84257.0,84256.0,1.33091231]
[1742050448647,0.06227803,84257.0,84256.0,1.31091231]
[1742050448835,0.06227803,84257.0,84256.0,1.32091231]
[1742050449444,0.06227803,84257.0,84256.0,1.03091231]
[1742050449650,0.06227803,84257.0,84256.0,1.26091231]
[1742050449852,0.06227803,84257.0,84256.0,1.03091231]
[1742050450149,0.06227803,84257.0,84256.0,0.79091231]
[1742050450541,0.06227803,84257.0,84256.0,1.02091231]
[1742050451040,0.06227803,84257.0,84256.0,1.26091231]
[1742050451244,0.00017803,84257.0,84256.0,1.2639835]
[1742050451556,0.2108807,84278.0,84277.0,0.1186539]
[1742050452147,0.2108807,84278.0,84277.0,0.3586539]
[1742050452344,0.2108807,84278.0,84277.0,0.1186539]
[1742050453852,0.2158807,84278.0,84277.0,0.1186539]
[1742050454441,0.2188807,84278.0,84277.0,0.1186539]
[1742050454737,0.2514807,84278.0,84277.0,0.1186539]
[1742050455149,0.2514807,84278.0,84277.0,0.13090634]
[1742050456852,0.1186638,84270.0,84269.0,0.17817243]
[1742050457246,0.1186638,84270.0,84269.0,0.19021097]
[1742050457550,0.1186638,84270.0,84269.0,0.42021097]
[1742050457748,0.2135638,84270.0,84269.0,0.42021097]
[1742050457943,0.0949,84270.0,84269.0,0.42021097]
[1742050458254,0.0969,84270.0,84269.0,0.42021097]
[1742050459158,0.2185638,84270.0,84269.0,0.42021097]
[1742050459457,0.0999,84270.0,84269.0,0.48401097]
[1742050459655,0.2185638,84270.0,84269.0,0.48401097]
[1742050461357,0.5793638,84270.0,84269.0,0.00017803]
[1742050461553,0.5793638,84270.0,84248.0,0.3608]
[1742050461554,0.1186821,84261.0,84260.0,0.1780123]
[1742050462051,0.4794821,84261.0,84260.0,0.1780123]
[1742050462249,0.1186807,84259.0,84258.0,0.1186802]
[1742050462555,0.1186807,84259.0,84256.0,0.13957149]
[1742050462556,0.1186821,84257.0,84256.0,0.13957149]
[1742050462958,0.1186821,84257.0,84256.0,0.01219954]
[1742050463262,0.1186891,84252.0,84251.0,0.2131871]
[1742050463463,0.1186891,84252.0,84251.0,0.5818776]
[1742050463646,0.1186891,84252.0,84251.0,0.3318776]
[1742050463847,0.1176891,84252.0,84251.0,0.3440433]
[1742050464053,0.2106891,84252.0,84251.0,0.3440433]
[1742050464458,0.2106891,84252.0,84251.0,0.3318776]
[1742050464660,0.2106891,84252.0,84251.0,0.1186905]
[1742050464870,0.1187022,84251.0,84250.0,0.11886893]
[1742050465054,0.1177022,84251.0,84250.0,0.00017803]
[1742050465254,0.1790022,84251.0,84250.0,0.11888163]
[1742050466165,0.1790022,84251.0,84250.0,0.13125754]
[1742050466761,0.1820022,84251.0,84250.0,0.13125754]
[1742050467654,0.1820022,84251.0,84250.0,0.01255394]
[1742050470968,0.1820022,84251.0,84250.0,0.13125774]
[1742050471172,0.0336,84251.0,84250.0,0.46325774]
[1742050471353,0.0336,84251.0,84250.0,0.76585774]
[1742050471556,0.0336,84251.0,84250.0,0.49585774]
[1742050471761,0.0336,84251.0,84250.0,0.74585774]
[1742050472156,0.1523024,84251.0,84250.0,0.22585774]
[1742050474372,0.1523024,84251.0,84250.0,0.19325774]
[1742050474668,0.1523024,84251.0,84250.0,0.16295774]
[1742050475270,0.1833024,84251.0,84250.0,0.19445774]
[1742050475973,0.1833024,84251.0,84250.0,0.16295774]
[1742050479770,0.1833024,84251.0,84250.0,0.13125774]
[1742050480071,0.1833024,84251.0,84250.0,0.01255394]
[1742050480289,0.1833024,84251.0,84250.0,0.13125774]
[1742050481561,0.1833024,84251.0,84250.0,0.16315774]
[1742050483259,0.1833024,84251.0,84243.0,0.1187129]
[1742050483260,0.1187123,84244.0,84243.0,0.1187129]
[1742050483663,0.1187137,84243.0,84242.0,0.1514146]
[1742050483867,0.2134137,84243.0,84242.0,0.1514146]
[1742050484268,0.1187264,84235.0,84234.0,0.1187235]
[1742050484462,0.1187264,84235.0,84234.0,0.18470153]
[1742050484671,0.1828264,84235.0,84234.0,0.18470153]
[1742050484863,0.1818264,84235.0,84234.0,0.18470153]
[1742050485478,0.1818264,84235.0,84234.0,0.19645916]
[1742050485693,0.1818264,84235.0,84234.0,0.19945916]
[1742050487167,0.1818264,84235.0,84234.0,0.21134649]
[1742050494381,0.1818264,84235.0,84234.0,0.22477254]
[1742050495780,0.1818264,84235.0,84234.0,0.21134649]
[1742050499687,0.2135264,84235.0,84234.0,0.21134649]
[1742050503578,0.2135264,84235.0,84234.0,0.17824649]
[1742050503888,0.2135264,84235.0,84234.0,0.20894649]
[1742050504387,0.2135264,84235.0,84216.0,0.2131871]
[1742050504388,0.1187348,84228.0,84216.0,0.2131871]
[1742050504689,0.1187503,84217.0,84216.0,0.3319388]
[1742050504888,0.4795503,84217.0,84216.0,0.3519388]
[1742050505590,0.5428503,84217.0,84216.0,0.3519388]
[1742050506284,0.5398503,84217.0,84216.0,0.36399858]
[1742050506792,0.5378503,84217.0,84216.0,0.15081148]
[1742050507186,0.5378503,84217.0,84216.0,0.15991046]
[1742050507582,0.5398503,84217.0,84216.0,0.15991046]
[1742050509081,0.5418503,84217.0,84216.0,0.15991046]
[1742050509594,0.5418503,84217.0,84216.0,0.15081148]
[1742050514591,0.7918503,84217.0,84216.0,0.03205978]
[1742050514789,0.0593865,84203.0,84202.0,0.0593846]
[1742050514992,0.1781627,84203.0,84202.0,0.07137664]
[1742050516098,0.2093627,84203.0,84202.0,0.07537664]
[1742050518490,0.0905865,84203.0,84202.0,0.07537664]
[1742050518792,0.0905865,84203.0,84202.0,0.10797664]
[1742050521201,0.0905865,84203.0,84202.0,0.07537664]
[1742050521595,0.0905865,84203.0,84202.0,0.10767664]
[1742050524905,0.0593899,84197.0,84194.0,0.00017814]
[1742050525201,0.1187814,84195.0,84194.0,0.11895954]
[1742050525407,0.1187814,84195.0,84194.0,0.15175954]
[1742050525709,0.1802814,84195.0,84194.0,0.16394612]
[1742050525998,0.1802814,84195.0,84194.0,0.04516472]
[1742050525999,0.4302814,84195.0,84194.0,0.04516472]
[1742050526204,0.1187898,84189.0,84188.0,0.0593955]
[1742050526398,0.1187898,84189.0,84188.0,0.0921955]
[1742050526801,0.1147898,84189.0,84188.0,0.0921955]
[1742050527196,0.1762898,84189.0,84188.0,0.0921955]
[1742050527396,0.1762898,84189.0,84188.0,0.0961955]
[1742050527703,0.4282898,84189.0,84188.0,0.004]
[1742050528003,0.4282898,84189.0,84188.0,0.01604684]
[1742050528302,0.4282898,84189.0,84182.0,0.0326]
[1742050528303,0.1187983,84183.0,84182.0,0.0326]
[1742050528512,0.7295983,84183.0,84182.0,0.0326]
[1742050528805,0.7295983,84183.0,84182.0,0.1513997]
[1742050528993,0.7295983,84183.0,84182.0,0.16362844]
[1742050529196,0.7935983,84183.0,84182.0,0.16362844]
[1742050529698,0.5435983,84183.0,84182.0,0.16362844]
[1742050529897,0.5435983,84183.0,84182.0,0.19692844]
[1742050530296,0.5465983,84183.0,84182.0,0.19692844]
[1742050532111,0.5495983,84183.0,84182.0,0.19692844]
[1742050535906,0.7895983,84183.0,84182.0,0.19692844]
[1742050536704,0.1188011,84181.0,84180.0,0.1188014]
[1742050536911,0.3588011,84181.0,84180.0,0.1188014]
[1742050537307,0.3588011,84181.0,84180.0,0.1515014]
[1742050537510,0.3588011,84181.0,84180.0,0.04468246]
[1742050538008,0.24,84181.0,84166.0,0.0594094]
[1742050538313,0.1188195,84169.0,84168.0,0.1188181]
[1742050538501,0.3788195,84169.0,84168.0,0.1188181]
[1742050538706,0.4713195,84169.0,84168.0,0.1188181]
[1742050538897,0.4713195,84169.0,84168.0,0.1831181]
[1742050539299,0.4713195,84169.0,83606.0,0.11840629]
[1742050539300,0.2376721,84159.0,84158.0,0.1188282]
[1742050539503,0.9158902,84159.0,84158.0,0.1188282]
[1742050539706,0.7970524,84159.0,84158.0,0.1188282]
[1742050540115,0.7970524,84159.0,84158.0,0.13101309]
[1742050541112,0.7970524,84159.0,84158.0,0.16231309]
[1742050541113,0.7980524,84159.0,84158.0,0.16231309]
[1742050541811,0.7990524,84159.0,84158.0,0.16231309]
[1742050542513,0.262,84159.0,84158.0,0.16231309]
[1742050543217,0.3808322,84159.0,84158.0,0.16231309]
[1742050543418,0.4112322,84159.0,84158.0,0.16231309]
[1742050543618,0.2324,84159.0,84158.0,0.16231309]
[1742050545207,0.3512322,84159.0,84158.0,0.16231309]
[1742050545406,0.2324,84159.0,84158.0,0.16231309]
[1742050546211,0.1208322,84159.0,84158.0,0.16231309]
[1742050546403,0.3522322,84159.0,84158.0,0.16231309]
[1742050547718,0.3832322,84159.0,84158.0,0.16231309]
[1742050548215,0.3522322,84159.0,84158.0,0.16231309]
[1742050550510,0.2334,84159.0,84158.0,0.16231309]
[1742050551523,0.202,84159.0,84158.0,0.16231309]
[1742050552026,0.3208322,84159.0,84158.0,0.16231309]
[1742050552217,0.1208322,84159.0,84158.0,0.16231309]
[1742050552416,0.002,84159.0,84158.0,0.16231309]
[1742050552814,0.0332,84159.0,84158.0,0.16231309]
[1742050554126,0.0332,84159.0,84158.0,0.69231309]
[1742050554825,0.0332,84159.0,84158.0,0.16231309]
[1742050555026,0.0332,84159.0,84158.0,0.64231309]
[1742050555529,0.002,84159.0,84158.0,0.64231309]
[1742050555921,0.002,84159.0,84158.0,0.16231309]
[1742050556121,0.002,84159.0,84158.0,0.68231309]
[1742050557033,0.002,84159.0,84158.0,0.67231309]
[1742050557431,0.002,84159.0,84158.0,0.16231309]
[1742050557629,0.002,84159.0,84158.0,0.65231309]
[1742050557822,0.002,84159.0,84158.0,0.16231309]
[1742050558224,0.002,84159.0,84158.0,0.67231309]
[1742050558420,0.002,84159.0,84158.0,0.65231309]
[1742050558932,0.002,84159.0,84158.0,0.70231309]
[1742050562926,0.0341,84159.0,84158.0,0.70231309]
[1742050564738,0.0341,84159.0,84158.0,0.81631309]
[1742050566537,0.0341,84159.0,84158.0,0.27631309]
[1742050567740,0.0659,84159.0,84158.0,0.27631309]
[1742050567940,0.1847322,84159.0,84158.0,0.27631309]
[1742050568724,0.0659,84159.0,84158.0,0.27631309]
[1742050570734,0.0659,84159.0,84158.0,0.78631309]
[1742050570938,0.0659,84159.0,84158.0,0.78619309]
[1742050573434,0.3608,84186.0,84178.0,0.1188053]
[1742050573639,0.01114224,84197.0,84179.0,0.1188039]
[1742050573943,0.1188004,84182.0,84179.0,0.1188039]
[1742050574526,0.0593972,84186.0,84179.0,0.1188039]
[1742050574527,0.1187984,84183.0,84179.0,0.1188039]
[1742050574730,0.0305,84181.0,84179.0,0.1816039]
[1742050574937,0.06508281,84180.0,84179.0,0.1816039]
[1742050575344,0.07508281,84180.0,84179.0,0.1816039]
[1742050577541,0.07508281,84180.0,84179.0,0.1489039]
[1742050578338,0.19388531,84180.0,84179.0,0.1188039]
[1742050578547,0.47388531,84180.0,84179.0,0.1188039]
[1742050578849,0.19388531,84180.0,84179.0,0.1188039]
[1742050582055,0.19380059,84180.0,84179.0,0.1188039]
[1742050586760,0.0594054,84175.0,84171.0,0.00017814]
[1742050587061,0.4796138,84172.0,84171.0,0.00017814]
[1742050587269,0.0594134,84163.0,84160.0,0.1782426]
[1742050587462,0.0594134,84163.0,84160.0,0.0594147]
[1742050587463,0.1188307,84161.0,84160.0,0.0594147]
[1742050587669,0.1188307,84160.0,84159.0,0.3320188]
[1742050587855,0.2144307,84160.0,84159.0,0.3320188]
[1742050588963,0.0956,84160.0,84159.0,0.3320188]
[1742050589163,0.0956,84160.0,84159.0,0.3628188]
[1742050589362,0.0966,84160.0,84159.0,0.3955188]
[1742050589562,0.0662,84160.0,84159.0,0.3955188]
[1742050590271,0.0672,84160.0,84159.0,0.3955188]
[1742050590478,0.0672,84160.0,84159.0,0.1823317]
[1742050591565,0.035,84160.0,84159.0,0.5464517]
[1742050591768,0.035,84160.0,84159.0,0.2964517]
[1742050592469,0.1538307,84160.0,84159.0,0.2964517]
[1742050592669,0.035,84160.0,84159.0,0.2964517]
[1742050592871,0.0677,84160.0,84159.0,0.2964517]
[1742050595074,0.1865307,84160.0,84159.0,0.2964517]
[1742050595275,0.0677,84160.0,84159.0,0.2964517]
[1742050596564,0.1865307,84160.0,84159.0,0.2964517]
[1742050597475,0.1865307,84160.0,84159.0,0.1188322]
[1742050598366,0.0594174,84158.0,84150.0,0.13304134]
[1742050598571,0.1188378,84155.0,84154.0,0.1800376]
[1742050598973,0.1188378,84155.0,84154.0,0.2124376]
[1742050599273,0.1188378,84155.0,84154.0,0.22783526]
[1742050600165,0.1188378,84155.0,84154.0,0.22883526]
[1742050600576,0.1188378,84155.0,84154.0,0.19643526]
[1742050600771,0.1188378,84155.0,84154.0,0.19543526]
[1742050600965,0.1188378,84155.0,84154.0,0.19643526]
[1742050602184,0.1188378,84155.0,84154.0,0.22803526]
[1742050603461,0.1188378,84155.0,84154.0,0.26013526]
[1742050604779,0.1239175,84157.0,84156.0,0.1188364]
[1742050605762,0.3739175,84157.0,84156.0,0.1188364]
[1742050605970,0.1239175,84157.0,84156.0,0.1188364]
[1742050613485,0.4039175,84157.0,84156.0,0.1188364]
[1742050613685,0.1239175,84157.0,84156.0,0.1188364]
[1742050614571,0.1239175,84157.0,84156.0,0.1812364]
[1742050619878,0.1239175,84157.0,84156.0,0.1494364]
[1742050628195,0.0329,84157.0,84156.0,0.1494364]
[1742050628392,0.00017814,84168.0,84167.0,0.1188209]
[1742050628597,0.479607,84177.0,84174.0,0.118811]
[1742050628781,0.3608,84177.0,84174.0,0.118811]
[1742050628981,0.1226594,84187.0,84186.0,0.118794]
[1742050629179,0.1226594,84187.0,84186.0,0.13316113]
[1742050629594,0.1542594,84187.0,84186.0,0.13316113]
[1742050629890,0.1542594,84187.0,84186.0,0.19586113]
[1742050630791,0.1572594,84187.0,84186.0,0.19586113]
[1742050631584,0.276052,84187.0,84186.0,0.19586113]
[1742050631785,0.1572594,84187.0,84186.0,0.19586113]
[1742050632002,0.1256594,84187.0,84186.0,0.19586113]
[1742050632298,0.003,84187.0,84186.0,0.19586113]
[1742050632483,0.0593922,84193.0,84192.0,0.1187842]
[1742050632790,0.0899922,84193.0,84192.0,0.1187842]
[1742050633184,0.0329,84194.0,84192.0,0.1187842]
[1742050633185,0.0329,84194.0,84193.0,0.1187842]
[1742050634595,0.1187912,84188.0,84187.0,0.2375792]
[1742050634792,0.1187912,84188.0,84187.0,0.3512992]
[1742050635389,0.1843912,84188.0,84187.0,0.3512992]
[1742050637394,0.1873912,84188.0,84187.0,0.3512992]
[1742050637591,0.0686,84188.0,84187.0,0.3512992]
[1742050637785,0.0656,84188.0,84187.0,0.3512992]
[1742050638004,0.0716,84188.0,84187.0,0.3512992]
[1742050639202,0.1903912,84188.0,84187.0,0.3512992]
[1742050639401,0.2221912,84188.0,84187.0,0.3512992]
[1742050639784,0.2181912,84188.0,84187.0,0.3512992]
[1742050639983,0.2211912,84188.0,84187.0,0.3512992]
[1742050640700,0.1014,84188.0,84187.0,0.3512992]
[1742050641493,0.2201912,84188.0,84187.0,0.3512992]
[1742050642993,0.2221912,84188.0,84187.0,0.3512992]
[1742050643195,0.2221912,84188.0,84187.0,0.2375792]
[1742050643599,0.2221912,84188.0,84187.0,0.2684792]
[1742050644495,0.1034,84188.0,84187.0,0.2684792]
[1742050645003,0.1034,84188.0,84187.0,0.5184792]
[1742050645296,0.0716,84188.0,84187.0,0.5484792]
[1742050646198,0.0716,84188.0,84187.0,0.2684792]
[1742050646497,0.0686,84188.0,84187.0,0.2684792]
[1742050646701,0.0706,84188.0,84187.0,0.2684792]
[1742050647012,0.0676,84188.0,84187.0,0.2684792]
[1742050647195,0.0696,84188.0,84187.0,0.2684792]
[1742050648706,0.1883912,84188.0,84187.0,0.2684792]
[1742050649387,0.0696,84188.0,84187.0,0.2684792]
[1742050649900,0.0716,84188.0,84187.0,0.2684792]
[1742050650407,0.0686,84188.0,84187.0,0.2684792]
[1742050650706,0.0696,84188.0,84187.0,0.2684792]
[1742050651905,0.1883912,84188.0,84187.0,0.2684792]
[1742050653302,0.5501912,84188.0,84187.0,0.0593951]
[1742050653503,0.0594012,84181.0,84176.0,0.0594037]
[1742050653813,0.1188039,84179.0,84178.0,0.11898204]
[1742050654306,0.1837039,84179.0,84178.0,0.11898204]
[1742050654497,0.1837039,84179.0,84178.0,0.13350122]
[1742050654697,0.1837039,84179.0,84178.0,0.40430122]
[1742050655006,0.1837039,84179.0,84178.0,0.69520122]
[1742050655304,0.1837039,84179.0,84178.0,0.19520122]
[1742050656107,0.0649,84179.0,84178.0,0.19520122]
[1742050656403,0.0659,84179.0,84178.0,0.19520122]
[1742050656606,0.0669,84179.0,84178.0,0.19520122]
[1742050659607,0.0669,84179.0,84178.0,0.72520122]
[1742050660000,0.0669,84179.0,84178.0,0.46520122]
[1742050660200,0.0669,84179.0,84178.0,0.69520122]
[1742050660412,0.0669,84179.0,84178.0,0.73520122]
[1742050661713,0.0669,84179.0,84178.0,0.19520122]
[1742050662615,0.1857039,84179.0,84178.0,0.16430122]
[1742050662911,0.0669,84179.0,84178.0,0.16430122]
[1742050664114,0.0669,84179.0,84178.0,0.19650122]
[1742050667214,0.0669,84179.0,84178.0,0.70650122]
[1742050667409,0.0669,84179.0,84178.0,0.19650122]
[1742050667614,0.0669,84179.0,84178.0,0.73650122]
[1742050668510,0.0669,84179.0,84178.0,1.00650122]
[1742050668714,0.0669,84179.0,84178.0,0.73650122]
[1742050669220,0.11895954,84195.0,84194.0,0.1187828]
[1742050670512,0.12395954,84195.0,84194.0,0.1187828]
[1742050670918,0.18755954,84195.0,84194.0,0.1187828]
[1742050671619,0.07377814,84195.0,84194.0,0.1187828]
[1742050671826,0.19255954,84195.0,84194.0,0.1187828]
[1742050682933,0.1187842,84194.0,84193.0,0.1187837]
[1742050683432,0.1187842,84193.0,84192.0,0.0593921]
[1742050683728,0.118787,84191.0,84190.0,0.00892599]
[1742050684027,0.1187884,84190.0,84189.0,0.1187884]
[1742050684222,0.1814884,84190.0,84189.0,0.1187884]
[1742050684625,0.1187983,84184.0,84183.0,0.059399]
[1742050685226,0.2137983,84184.0,84183.0,0.059399]
[1742050686222,0.2157983,84184.0,84183.0,0.059399]
[1742050686427,0.8465983,84184.0,84183.0,0.059399]
[1742050686930,0.5765983,84184.0,84183.0,0.059399]
[1742050687432,0.5785983,84184.0,84183.0,0.059399]
[1742050689435,0.5785983,84184.0,84183.0,0.089799]
[1742050690117,0.2177983,84184.0,84183.0,0.089799]
[1742050692729,0.0667,84184.0,84183.0,0.089799]
[1742050693030,0.1854969,84184.0,84183.0,0.089799]
[1742050699142,0.0667,84184.0,84183.0,0.089799]
[1742050699335,0.1854969,84184.0,84183.0,0.089799]
[1742050705840,0.5462969,84184.0,84183.0,0.089799]
[1742050709246,0.5462969,84184.0,84183.0,0.059399]
[1742050710041,0.8062969,84184.0,84183.0,0.059399]
[1742050710436,0.5462969,84184.0,84183.0,0.059399]
[1742050713448,0.7862969,84184.0,84183.0,0.059399]
[1742050714048,0.5462969,84184.0,84183.0,0.059399]
[1742050716444,0.1187997,84183.0,84182.0,0.1187983]
[1742050716643,0.1517997,84183.0,84182.0,0.1187983]
[1742050716843,0.2146997,84183.0,84182.0,0.1187983]
[1742050717546,0.4546997,84183.0,84182.0,0.1518983]
[1742050717843,0.4566997,84183.0,84182.0,0.1518983]
[1742050718046,0.2166997,84183.0,84182.0,0.1518983]
[1742050718948,0.2186997,84183.0,84182.0,0.1518983]
[1742050720242,0.4686997,84183.0,84182.0,0.1518983]
[1742050720950,0.2186997,84183.0,84182.0,0.1518983]
[1742050721258,0.4886997,84183.0,84182.0,0.1518983]
[1742050721754,0.2186997,84183.0,84182.0,0.1518983]
[1742050727252,0.4686997,84183.0,84182.0,0.1518983]
[1742050727457,0.2186997,84183.0,84182.0,0.1518983]
[1742050734657,0.0669,84183.0,84182.0,0.4218983]
[1742050734860,0.0354,84183.0,84182.0,0.6418983]
[1742050735161,0.0657,84183.0,84182.0,0.6418983]
[1742050737256,0.0354,84183.0,84182.0,0.6418983]
[1742050737454,0.0354,84183.0,84182.0,0.6718983]
[1742050737858,0.004,84183.0,84182.0,0.6718983]
[1742050738168,0.3608,84205.0,84193.0,0.1187842]
[1742050738365,0.0313,84199.0,84193.0,0.8687842]
[1742050738564,0.0313,84199.0,84193.0,0.6187842]
[1742050738767,0.0313,84199.0,84194.0,0.1187828]
[1742050739067,0.0313,84199.0,84194.0,0.7017828]
[1742050739664,0.0311,84198.0,84194.0,0.7017828]
[1742050740168,0.00517814,84195.0,84194.0,0.7017828]
[1742050741073,0.01017814,84195.0,84194.0,0.4617828]
[1742050741665,0.01017814,84195.0,84194.0,0.4117828]
[1742050742264,0.01017814,84195.0,84194.0,0.1817828]
[1742050743068,0.12895954,84195.0,84194.0,0.1817828]
[1742050743268,0.48975954,84195.0,84194.0,0.1495828]
[1742050743962,0.48975954,84195.0,84194.0,0.1187828]
[1742050744163,0.48975954,84195.0,84194.0,0.1517828]
[1742050747074,0.60097814,84195.0,84190.0,0.1187872]
[1742050747264,0.118787,84191.0,84190.0,0.2375741]
[1742050747569,0.118787,84191.0,84186.0,0.0593967]
[1742050747570,0.1187926,84187.0,84186.0,0.0593967]
[1742050747774,0.7195926,84187.0,84186.0,0.0593967]
[1742050748071,0.7834926,84187.0,84186.0,0.0593967]
[1742050748665,0.1187969,84184.0,84183.0,0.1187983]
[1742050748868,0.3787969,84184.0,84183.0,0.1187983]
[1742050749065,0.3787969,84184.0,84179.0,0.0594016]
[1742050749066,0.1188025,84180.0,84179.0,0.0594016]
[1742050749271,0.4796025,84180.0,84179.0,0.0594016]
[1742050749872,0.5425025,84180.0,84179.0,0.0913016]
[1742050750367,0.5435025,84180.0,84179.0,0.0913016]
[1742050751170,0.5445025,84180.0,84179.0,0.0913016]
[1742050754463,0.5445025,84180.0,84179.0,0.1223016]
[1742050769681,0.7945025,84180.0,84179.0,0.0319]
[1742050769886,0.1188209,84168.0,84167.0,0.0594098]
[1742050770073,0.1188209,84168.0,84167.0,0.6641098]
[1742050770273,0.1809209,84168.0,84167.0,0.1241098]
[1742050770470,0.1809195,84168.0,84167.0,0.1241098]
[1742050770675,0.1809195,84168.0,84167.0,0.14059562]
[1742050771080,0.1809195,84168.0,84167.0,0.14359562]
[1742050772186,0.1869195,84168.0,84167.0,0.14059562]
[1742050775187,0.1869195,84168.0,84167.0,0.60059562]
[1742050775378,0.1869195,84168.0,84167.0,0.14059562]
[1742050775578,0.1869195,84168.0,84167.0,0.65059562]
[1742050775989,0.0681,84168.0,84167.0,0.65059562]
[1742050776192,0.0681,84168.0,84167.0,0.67059562]
[1742050776492,0.1869195,84168.0,84167.0,0.67059562]
[1742050778294,0.1869195,84168.0,84167.0,0.66059562]
[1742050778494,0.1859195,84168.0,84167.0,0.66059562]
[1742050778684,0.1849195,84168.0,84167.0,0.66059562]
[1742050779800,0.1849195,84168.0,84167.0,0.69059562]
[1742050780113,0.1829195,84168.0,84167.0,0.69059562]
[1742050780395,0.1849195,84168.0,84167.0,0.69059562]
[1742050780892,0.0661,84168.0,84167.0,0.67059562]
[1742050781395,0.1849195,84168.0,84167.0,0.67059562]
[1742050781597,0.1849195,84168.0,84167.0,0.14059562]
[1742050781800,0.1849195,84168.0,84167.0,0.41059562]
[1742050781998,0.1849195,84168.0,84167.0,0.14059562]
[1742050782199,0.1849195,84168.0,84167.0,0.64059562]
[1742050782396,0.1849195,84168.0,84167.0,0.39059562]
[1742050782794,0.1829195,84168.0,84167.0,0.39059562]
[1742050783098,0.1839195,84168.0,84167.0,0.39059562]
[1742050783305,0.1869195,84168.0,84167.0,0.64059562]
[1742050783498,0.0681,84168.0,84167.0,0.64059562]
[1742050783799,0.1869195,84168.0,84167.0,0.64059562]
[1742050784005,0.1869195,84168.0,84167.0,0.14059562]
[1742050784190,0.1869195,84168.0,84167.0,0.63059562]
[1742050784393,0.1839195,84168.0,84167.0,0.63059562]
[1742050784591,0.1849195,84168.0,84167.0,0.63059562]
[1742050785402,0.1849195,84168.0,84167.0,0.62059562]
[1742050788102,0.1849195,84168.0,84167.0,0.38059562]